bitfinex/quotes_ETHUSD_20251031
["timestamp","ask_amount","ask_price","bid_price","bid_amount"]
[1761941574472,2.93070986,3897.5,3897.4,0.002]
[1761941574673,3.13170986,3897.5,3897.4,0.002]
[1761941577072,3.53721386,3897.5,3897.4,0.002]
[1761941581695,4.93689386,3897.5,3897.4,0.002]
[1761941584594,5.33939926,3897.5,3897.4,0.002]
[1761941584799,6.16171078,3897.5,3897.4,0.002]
[1761941585501,5.75920538,3897.5,3897.4,0.002]
[1761941588222,13.75074538,3897.5,3897.4,0.002]
[1761941588607,13.50466138,3897.5,3897.4,0.002]
[1761941588818,13.90717589,3897.5,3897.4,0.002]
[1761941590453,14.01003313,3897.5,3897.4,0.002]
[1761941591727,11.40208338,3897.5,3897.4,0.002]
[1761941593906,25.66276238,3897.5,3897.4,0.002]
[1761941594244,28.8772853,3897.5,3897.4,0.002]
[1761941594652,29.56927853,3897.5,3897.4,0.002]
[1761941594813,29.56927853,3897.5,3896.8,0.002]
[1761941594814,10.72754876,3896.9,3896.8,0.002]
[1761941595016,36.989944,3896.9,3896.8,0.002]
[1761941595248,37.336944,3896.9,3896.8,0.002]
[1761941595450,47.64184254,3896.9,3896.8,0.002]
[1761941595748,47.64184254,3896.9,3896.4,1e-08]
[1761941595749,28.95967174,3896.5,3896.4,1e-08]
[1761941595959,27.08142974,3896.5,3896.4,1e-08]
[1761941596112,20.81243074,3896.5,3896.4,1e-08]
[1761941596626,20.36804574,3896.5,3896.4,1e-08]
[1761941597033,20.55262174,3896.5,3896.4,1e-08]
[1761941597333,20.84743296,3896.5,3896.4,1e-08]
[1761941597861,21.28689603,3896.5,3896.4,1e-08]
[1761941598058,22.35695803,3896.5,3896.4,1e-08]
[1761941598553,20.99610703,3896.5,3896.4,1e-08]
[1761941599058,22.25610503,3896.5,3896.4,1e-08]
[1761941599418,22.25610503,3896.5,3895.1,0.005]
[1761941599419,4.37205088,3895.8,3895.1,0.005]
[1761941599623,10.07250015,3895.8,3895.1,0.005]
[1761941601322,29.69184415,3895.8,3895.1,0.005]
[1761941601523,25.92371515,3895.8,3895.1,0.005]
[1761941601742,27.52397639,3895.8,3895.1,0.005]
[1761941602081,2.56726227,3895.2,3895.1,0.005]
[1761941602380,41.7123524,3895.2,3895.1,0.005]
[1761941602567,4.37290771,3894.5,3894.4,0.002]
[1761941602769,10.24137472,3894.5,3894.4,0.002]
[1761941602989,21.08223413,3894.5,3894.4,0.002]
[1761941603158,21.42773413,3894.5,3894.4,0.002]
[1761941603348,29.54847066,3894.5,3894.4,0.002]
[1761941604365,35.88089066,3894.5,3894.4,0.002]
[1761941604691,35.88089066,3894.5,3894.1,0.005]
[1761941604692,12.24348846,3894.1,3893.5,0.002]
[1761941604890,12.56908846,3894.1,3893.5,0.002]
[1761941605091,12.91608846,3894.1,3893.5,0.002]
[1761941605258,13.01904551,3894.1,3893.5,0.002]
[1761941605460,19.20279251,3894.1,3893.5,0.002]
[1761941605674,20.04306662,3894.1,3893.5,0.002]
[1761941606256,14.88703127,3893.7,3893.5,0.002]
[1761941606455,22.44255707,3893.7,3893.5,0.002]
[1761941607606,27.55792407,3893.7,3893.5,0.002]
[1761941607806,29.15818531,3893.7,3893.5,0.002]
[1761941608184,29.56113819,3893.7,3893.5,0.002]
[1761941608505,29.56113819,3893.7,3892.7,0.002]
[1761941608506,13.93058511,3893.2,3892.7,0.002]
[1761941608708,20.30777691,3893.2,3892.7,0.002]
[1761941608888,29.34883206,3893.2,3892.7,0.002]
[1761941609287,22.97894026,3893.2,3892.7,0.002]
[1761941609485,26.16239626,3893.2,3892.7,0.002]
[1761941609910,25.13180426,3893.2,3892.7,0.002]
[1761941610608,24.26114026,3893.2,3892.7,0.002]
[1761941611290,22.55621626,3893.2,3892.7,0.002]
[1761941611621,25.74910126,3893.2,3892.7,0.002]
[1761941612105,24.82345126,3893.2,3892.7,0.002]
[1761941612613,22.19574104,3892.8,3892.7,0.002]
[1761941612804,18.79734404,3892.8,3892.7,0.002]
[1761941613045,19.14434404,3892.8,3892.7,0.002]
[1761941613513,17.68543304,3892.8,3892.7,0.002]
[1761941614105,18.37373304,3892.8,3892.7,0.002]
[1761941614306,16.26640515,3892.8,3892.7,0.002]
[1761941614505,6.44330315,3892.8,3892.7,0.002]
[1761941614711,25.02172815,3892.8,3892.7,0.002]
[1761941615474,24.76435915,3892.8,3892.7,0.002]
[1761941615681,25.16736482,3892.8,3892.7,0.002]
[1761941616618,6.84630882,3892.8,3892.7,0.002]
[1761941616827,25.16736482,3892.8,3892.7,0.002]
[1761941617027,17.56316582,3892.8,3892.7,0.002]
[1761941617226,17.21616582,3892.8,3892.7,0.002]
[1761941617614,18.75499873,3892.8,3892.7,0.002]
[1761941617816,18.84462973,3892.8,3892.7,0.002]
[1761941617997,18.49762973,3892.8,3892.7,0.002]
[1761941618335,17.69144315,3892.8,3892.7,0.002]
[1761941618694,24.05015715,3892.8,3892.7,0.002]
[1761941619616,12.45630315,3892.8,3892.7,0.002]
[1761941619818,22.96468015,3892.8,3892.7,0.002]
[1761941620435,19.15838215,3892.8,3892.7,0.002]
[1761941620793,34.03380815,3892.8,3892.7,0.002]
[1761941621639,34.43679713,3892.8,3892.7,0.002]
[1761941621800,34.38965813,3892.8,3892.7,0.002]
[1761941622314,32.87715213,3892.8,3892.7,0.002]
[1761941622708,34.26013513,3892.8,3892.7,0.002]
[1761941622908,32.87715213,3892.8,3892.7,0.002]
[1761941623293,39.07110536,3892.8,3892.7,0.002]
[1761941623802,27.05324536,3892.8,3892.7,0.002]
[1761941624010,40.70688336,3892.8,3892.7,0.002]
[1761941624237,40.44951436,3892.8,3892.7,0.002]
[1761941624697,24.09376313,3892.8,3892.7,0.4873]
[1761941624892,28.71146402,3892.8,3892.7,0.4873]
[1761941625139,19.13701802,3892.8,3892.7,0.9827]
[1761941626232,18.73402904,3892.8,3892.7,0.9827]
[1761941626696,18.32852504,3892.8,3892.7,0.9827]
[1761941627648,18.73402904,3892.8,3892.7,0.9827]
[1761941628623,21.17456439,3892.8,3892.7,0.9827]
[1761941629130,21.5775238,3892.8,3892.7,0.4873]
[1761941630042,21.5775238,3892.8,3892.7,0.9602]
[1761941631631,21.17456439,3892.8,3892.7,0.9602]
[1761941633002,21.17456439,3892.8,3892.7,0.4873]
[1761941634898,21.57752829,3892.8,3892.7,0.4873]
[1761941635433,13.57752829,3892.8,3892.7,0.9602]
[1761941636545,13.57752829,3892.8,3892.7,0.4873]
[1761941638549,14.13298591,3892.8,3892.7,0.4873]
[1761941639046,13.57752829,3892.8,3892.7,0.9602]
[1761941639801,14.1330145,3892.8,3892.7,0.9602]
[1761941641643,14.1330145,3892.8,3892.7,0.4873]
[1761941642419,14.1330145,3892.8,3892.7,0.002]
[1761941644005,14.1330145,3892.8,3892.7,0.4871]
[1761941644710,14.1330145,3892.8,3892.7,0.96]
[1761941646981,13.7300506,3892.8,3892.7,0.96]
[1761941647561,13.7300506,3892.8,3892.7,0.4871]
[1761941648145,14.2171506,3892.8,3892.7,0.4871]
[1761941650072,14.2171506,3892.8,3892.7,0.96]
[1761941650273,14.62011889,3892.8,3892.7,0.96]
[1761941651257,8.26011889,3892.8,3892.7,0.96]
[1761941651456,5.33248354,3892.8,3892.7,0.96]
[1761941652474,5.33248354,3892.8,3892.7,0.002]
[1761941653477,5.33248354,3892.8,3892.7,0.4871]
[1761941653690,2.3581345,3892.8,3892.7,0.96]
[1761941653841,4.37149333,3892.8,3892.7,0.96]
[1761941655793,4.38945592,3892.8,3892.7,0.96]
[1761941655948,15.12494049,3892.8,3892.7,0.002]
[1761941656149,31.99123349,3892.8,3892.7,0.002]
[1761941656465,27.1349587,3892.8,3892.7,0.002]
[1761941656876,26.45037049,3892.8,3892.7,0.002]
[1761941657249,36.27678449,3892.8,3892.7,0.002]
[1761941657561,34.32099549,3892.8,3892.7,0.002]
[1761941657765,25.33545649,3892.8,3892.7,0.002]
[1761941658150,25.56196549,3892.8,3892.7,0.002]
[1761941658754,16.80370649,3892.8,3892.7,0.002]
[1761941659064,15.68210349,3892.8,3892.7,0.002]
[1761941659268,19.81835849,3892.8,3892.7,0.002]
[1761941659864,16.84952449,3892.8,3892.7,0.002]
[1761941660256,22.03042749,3892.8,3892.7,0.002]
[1761941660596,21.3816952,3892.8,3892.7,0.002]
[1761941661096,20.7384752,3892.8,3892.7,0.002]
[1761941661870,17.5889452,3892.8,3892.7,0.002]
[1761941662268,14.95950633,3892.8,3892.7,0.002]
[1761941662468,5.62568497,3892.8,3892.7,0.4987]
[1761941662655,7.65785497,3892.8,3892.7,0.96]
[1761941662988,5.62568497,3892.8,3892.7,0.96]
[1761941663351,4.52425871,3892.8,3892.7,0.96]
[1761941663806,4.94518782,3892.8,3892.7,0.96]
[1761941664159,4.92722523,3892.8,3892.7,0.96]
[1761941664573,0.95870019,3892.8,3892.7,0.96]
[1761941664870,4.37149156,3892.8,3892.7,0.96]
[1761941668435,1.80264652,3892.8,3892.7,0.96]
[1761941668725,4.37149156,3892.8,3892.7,0.96]
[1761941668919,0.40296652,3892.8,3892.7,0.96]
[1761941669118,0.001,3893.1,3892.7,0.96]
[1761941669276,0.001,3893.1,3893.0,3.06541307]
[1761941669476,0.001,3893.1,3893.0,3.0911002]
[1761941669676,0.001,3893.1,3893.0,3.52671307]
[1761941669907,0.001,3893.1,3893.0,3.5524002]
[1761941670324,0.001,3893.1,3893.0,3.52671307]
[1761941670491,0.001,3893.1,3893.0,1.7065819]
[1761941670696,0.001,3893.1,3893.0,3.52671307]
[1761941671384,0.001,3893.1,3893.0,8.68196101]
[1761941672518,0.001,3893.1,3893.0,8.80996101]
[1761941674115,0.001,3893.1,3893.0,8.93796101]
[1761941674952,0.001,3893.1,3893.0,3.78271307]
[1761941675152,0.001,3893.1,3893.0,4.95928026]
[1761941678133,0.001,3893.1,3893.0,4.93359313]
[1761941678844,0.001,3893.1,3893.0,4.95928026]
[1761941679251,0.001,3893.1,3893.0,4.93359313]
[1761941680559,0.001,3893.1,3893.0,4.95928026]
[1761941681085,0.001,3893.5,3893.4,2.56844917]
[1761941681252,0.001,3893.5,3893.4,8.69042652]
[1761941681446,0.001,3893.5,3893.4,9.12604203]
[1761941681657,0.001,3893.5,3893.4,9.22895405]
[1761941683084,2.56733504,3895.1,3894.9,0.4967]
[1761941683684,0.85850146,3895.6,3894.9,0.4967]
[1761941683844,2.56732012,3895.2,3894.9,0.4967]
[1761941684946,2.66071362,3895.0,3894.6,0.1875]
[1761941685291,0.01796259,3894.9,3894.6,0.1875]
[1761941685472,0.01796259,3894.9,3894.6,0.6488]
[1761941685842,2.567502,3894.9,3894.3,0.02567855]
[1761941686044,0.01796259,3894.8,3894.4,0.4613]
[1761941686458,0.01796259,3894.8,3894.7,0.4975]
[1761941687001,2.56735065,3895.1,3894.7,0.4975]
[1761941687545,2.56739802,3895.0,3894.7,0.4975]
[1761941688338,2.56747649,3894.9,3894.7,0.4975]
[1761941689609,0.01796259,3894.8,3894.4,0.4613]
[1761941690401,2.56765021,3894.7,3894.3,0.1875]
[1761941690627,0.01796259,3894.6,3894.3,0.1875]
[1761941690805,0.01796259,3894.8,3894.3,0.6723]
[1761941691136,0.01796259,3894.8,3894.5,0.4975]
[1761941691342,2.58550255,3894.8,3894.5,0.4975]
[1761941693929,2.56759843,3894.7,3894.5,0.4975]
[1761941694170,0.01796259,3894.6,3894.5,0.4975]
[1761941694349,0.01796259,3894.7,3894.5,0.4975]
[1761941695866,0.01796259,3894.7,3893.0,1.15088006]
[1761941695867,0.128,3894.5,3894.0,2.56800013]
[1761941696069,0.128,3894.2,3894.0,3.05280013]
[1761941696277,0.128,3894.2,3894.1,3.23838746]
[1761941696428,0.128,3894.2,3894.1,3.73588746]
[1761941696774,0.128,3894.2,3894.1,4.4460382]
[1761941697158,0.128,3894.2,3894.1,4.47171807]
[1761941703184,0.001,3895.2,3894.2,2.56792152]
[1761941703345,0.128,3894.8,3894.7,2.56759185]
[1761941703545,0.128,3894.8,3894.7,3.05239185]
[1761941703745,0.128,3894.8,3894.7,3.54989185]
[1761941703986,0.128,3894.8,3894.7,4.1616485]
[1761941704373,0.129,3895.2,3895.1,2.56732818]
[1761941704572,0.129,3895.2,3895.1,3.25042818]
[1761941704790,0.129,3895.2,3895.1,3.73522818]
[1761941705864,0.6099,3895.2,3894.7,0.73975665]
[1761941706166,0.6099,3895.2,3894.5,0.002]
[1761941706167,0.0976,3894.8,3894.5,0.002]
[1761941706352,0.0976,3894.8,3894.5,2.59539085]
[1761941706553,0.01796259,3895.1,3894.7,0.4975]
[1761941706958,0.46936259,3895.1,3894.7,0.4975]
[1761941707373,0.01796259,3895.1,3894.7,0.4975]
[1761941707773,0.01896259,3895.2,3895.0,0.4975]
[1761941708009,0.128,3894.7,3894.6,2.56765778]
[1761941708210,0.128,3894.7,3894.6,3.05245778]
[1761941708414,0.128,3894.7,3894.6,3.54995778]
[1761941708913,0.128,3894.7,3894.5,0.002]
[1761941709210,0.128,3894.7,3894.6,0.4975]
[1761941710379,0.128,3894.7,3894.5,0.002]
[1761941710714,2.56741541,3895.0,3894.5,0.002]
[1761941710915,0.2818,3894.6,3894.5,0.002]
[1761941711410,0.29976259,3894.6,3894.5,0.002]
[1761941712207,8.28816831,3894.6,3894.5,0.002]
[1761941712408,8.27020572,3894.6,3894.5,0.002]
[1761941712592,8.67570972,3894.6,3894.5,0.002]
[1761941712794,39.06353884,3894.6,3894.5,0.002]
[1761941712995,16.95597784,3894.6,3894.5,0.002]
[1761941713304,15.57587784,3894.6,3894.5,0.002]
[1761941713828,20.54764384,3894.6,3894.5,0.002]
[1761941714340,19.99187984,3894.6,3894.5,0.002]
[1761941714930,20.09267784,3894.6,3894.5,0.002]
[1761941715233,14.9374299,3894.6,3894.5,0.002]
[1761941715389,20.09267784,3894.6,3894.5,0.002]
[1761941715793,27.29230484,3894.6,3894.5,0.002]
[1761941716100,23.10455684,3894.6,3894.5,0.002]
[1761941716814,28.70875884,3894.6,3894.5,0.002]
[1761941717014,23.80971181,3894.6,3894.5,0.002]
[1761941717221,21.29283668,3894.6,3894.5,0.002]
[1761941717408,20.67298868,3894.6,3894.5,0.002]
[1761941717597,6.3201399,3894.6,3894.5,0.002]
[1761941718345,6.7256439,3894.6,3894.5,0.002]
[1761941718552,6.3201399,3894.6,3894.5,0.002]
[1761941718756,6.7256439,3894.6,3894.5,0.002]
[1761941718958,12.0081099,3894.6,3894.5,0.002]
[1761941719442,11.5380129,3894.6,3894.5,0.002]
[1761941719914,12.3065489,3894.6,3894.5,0.002]
[1761941720247,12.0708499,3894.6,3894.5,0.002]
[1761941720449,11.8627379,3894.6,3894.5,0.002]
[1761941720611,3.96733778,3894.6,3894.5,0.002]
[1761941720813,1.39968,3894.6,3894.5,0.4645]
[1761941721028,2.56752796,3894.8,3894.5,0.4645]
[1761941721029,2.56752679,3894.8,3894.5,0.4645]
[1761941721224,2.58555444,3894.7,3894.5,0.4645]
[1761941721431,2.56765778,3894.6,3894.5,0.4645]
[1761941722074,2.56761455,3894.7,3894.5,0.4645]
[1761941722618,0.001,3895.2,3894.6,0.4625]
[1761941722813,2.56743741,3895.0,3894.6,0.4625]
[1761941723018,0.01796259,3894.9,3894.6,0.4625]
[1761941723414,0.128,3894.6,3894.5,0.002]
[1761941723653,0.128,3894.6,3894.5,0.4641]
[1761941725862,0.6222,3894.6,3894.5,0.002]
[1761941726063,0.64016259,3894.6,3894.5,0.002]
[1761941726262,0.14596259,3894.6,3894.5,0.002]
[1761941726462,2.71362037,3894.6,3894.5,0.002]
[1761941726669,0.14596259,3894.6,3894.5,0.002]
[1761941726987,2.71362037,3894.6,3894.5,0.002]
[1761941727352,0.14596259,3894.6,3894.5,0.002]
[1761941728250,0.14596259,3894.6,3894.5,0.4641]
[1761941728684,0.128,3894.6,3894.5,0.4641]
[1761941730285,0.128,3894.6,3894.5,0.002]
[1761941730286,9.22870006,3894.6,3894.5,0.002]
[1761941730485,9.21073747,3894.6,3894.5,0.002]
[1761941730801,9.61624147,3894.6,3894.5,0.002]
[1761941731480,4.46099353,3894.6,3894.5,0.002]
[1761941731657,4.47895612,3894.6,3894.5,0.002]
[1761941731853,25.23122008,3894.6,3894.5,0.002]
[1761941732078,25.21325749,3894.6,3894.5,0.002]
[1761941732253,24.56965553,3894.6,3894.5,0.002]
[1761941733070,25.06881953,3894.6,3894.5,0.002]
[1761941733491,18.52733549,3894.6,3894.5,0.002]
[1761941733991,5.79557353,3894.6,3894.5,0.002]
[1761941737195,2.294984,3894.6,3894.5,0.002]
[1761941737360,4.37284178,3894.6,3894.5,0.002]
[1761941737558,3.96733778,3894.6,3894.5,0.002]
[1761941737871,1.39968,3894.6,3894.5,0.4641]
[1761941739083,1.39968,3894.6,3894.5,0.002]
[1761941739281,1.41764259,3894.6,3894.5,0.002]
[1761941739594,1.41764259,3894.6,3894.5,0.9631]
[1761941739793,1.39968,3894.6,3894.5,0.9631]
[1761941739959,1.39968,3894.9,3894.5,0.9631]
[1761941740161,3.96727185,3894.7,3894.6,0.9611]
[1761941740467,1.39968,3894.7,3894.6,0.9611]
[1761941740671,2.56757095,3894.8,3894.6,0.9611]
[1761941741219,2.56757095,3894.8,3894.7,0.4621]
[1761941742103,2.56857095,3894.8,3894.7,0.4621]
[1761941742614,0.001,3894.8,3894.7,0.9611]
[1761941742921,0.128,3894.7,3894.5,0.002]
[1761941743118,2.56853229,3894.8,3894.7,0.4621]
[1761941743818,2.69560297,3894.7,3894.5,0.002]
[1761941744016,0.01796259,3894.6,3894.5,0.002]
[1761941744474,0.01796259,3894.6,3894.5,0.4641]
[1761941745078,2.58562037,3894.6,3894.5,0.4641]
[1761941745276,8.86303633,3894.6,3894.5,0.002]
[1761941745515,9.36049378,3894.6,3894.5,0.002]
[1761941746512,0.60612004,3894.6,3894.5,0.002]
[1761941746719,2.67632037,3894.6,3894.5,0.002]
[1761941747177,3.13742037,3894.6,3894.5,0.002]
[1761941747578,2.67632037,3894.6,3894.5,0.002]
[1761941748115,0.001,3894.8,3894.5,0.9611]
[1761941748314,0.129,3894.8,3894.7,3.03659185]
[1761941748536,0.129,3894.8,3894.7,4.13889984]
[1761941759850,0.001,3894.8,3894.7,4.13889984]
[1761941760955,0.001,3894.8,3894.7,4.26689984]
[1761941761180,0.001,3894.8,3894.7,4.29257575]
[1761941761659,0.001,3894.8,3894.7,4.26689984]
[1761941764125,0.001,3894.8,3894.7,3.77679984]
[1761941764283,0.001,3894.8,3894.7,3.03659185]
[1761941764685,0.001,3894.8,3894.7,2.56759185]
[1761941764895,0.001,3894.8,3894.7,3.03659185]
[1761941765301,0.001,3894.8,3894.7,3.52669185]
[1761941765985,0.001,3894.8,3894.7,9.71340781]
[1761941766190,0.001,3894.8,3894.7,10.9444874]
[1761941767698,0.001,3894.8,3894.7,4.75777144]
[1761941769920,0.001,3894.8,3894.7,4.26767144]
[1761941770219,0.001,3894.8,3894.7,3.03659185]
[1761941770625,0.001,3894.8,3894.7,2.56759185]
[1761941770824,0.74626259,3894.8,3894.6,0.002]
[1761941770982,0.005,3894.7,3894.6,0.002]
[1761941771522,0.78084388,3894.7,3894.6,0.002]
[1761941772108,0.5036,3894.7,3894.6,0.002]
[1761941772889,0.19996259,3894.8,3894.6,0.002]
[1761941772890,0.001,3894.8,3894.6,0.002]
[1761941773298,0.001,3894.8,3894.6,2.56964394]
[1761941773643,0.001,3894.8,3894.7,3.03659185]
[1761941773805,0.129,3894.8,3894.7,9.71340781]
[1761941773991,0.001,3894.8,3894.7,10.94191962]
[1761941775429,0.001,3894.8,3894.7,4.88320366]
[1761941775790,0.001,3894.8,3894.7,4.90887957]
[1761941775988,0.001,3894.8,3894.7,4.88320366]
[1761941777298,0.001,3894.8,3894.7,4.26510366]
[1761941777492,0.001,3894.8,3894.7,3.03659185]
[1761941778430,0.0515,3894.8,3894.7,2.56759185]
[1761941778655,0.001,3894.8,3894.7,2.56759185]
[1761941779032,0.2325,3894.8,3894.6,0.002]
[1761941779218,0.005,3894.7,3894.6,0.002]
[1761941780141,0.005,3894.7,3894.6,2.56965778]
[1761941781317,0.001,3894.8,3894.7,2.56759185]
[1761941781563,0.001,3894.8,3894.7,3.03719185]
[1761941781733,0.0671,3894.8,3894.6,0.002]
[1761941781936,0.001,3894.8,3894.7,2.56759185]
[1761941782117,0.001,3894.8,3894.7,3.03719185]
[1761941784150,0.128,3894.7,3894.6,2.56964535]
[1761941784644,0.1941,3894.7,3894.6,0.002]
[1761941784849,0.128,3894.7,3894.6,0.002]
[1761941785068,0.128,3894.7,3894.6,2.56965778]
[1761941786097,0.128,3894.7,3894.6,3.03925778]
[1761941786685,0.1941,3894.7,3894.6,2.56965778]
[1761941788278,0.1941,3894.7,3894.6,0.002]
[1761941788649,0.6743,3894.7,3894.6,0.002]
[1761941790085,0.6743,3894.7,3894.6,2.56965778]
[1761941790390,0.1941,3894.7,3894.6,2.56965778]
[1761941790749,0.1941,3894.7,3894.6,0.002]
[1761941791380,0.1941,3894.7,3894.6,2.56965778]
[1761941792353,0.1941,3894.7,3894.6,0.002]
[1761941792785,0.1941,3894.7,3894.6,2.56965778]
[1761941794393,0.1941,3894.7,3894.6,0.002]
[1761941794754,0.6743,3894.7,3894.6,0.002]
[1761941795401,0.1941,3894.7,3894.6,0.002]
[1761941796982,0.6743,3894.7,3894.6,0.002]
[1761941797363,0.1941,3894.7,3894.6,0.002]
[1761941801472,0.53827621,3894.7,3894.6,0.002]
[1761941803907,0.1941,3894.7,3894.6,0.002]
[1761941805937,0.128,3894.7,3894.6,0.002]
[1761941806090,0.128,3894.7,3894.6,3.03925778]
[1761941806291,0.128,3894.7,3894.6,0.4716]
[1761941806490,0.128,3894.7,3894.6,3.03925778]
[1761941806730,0.001,3894.8,3894.7,2.56759185]
[1761941806917,0.001,3894.8,3894.7,3.05609185]
[1761941807338,0.001,3894.8,3894.7,3.52799185]
[1761941807529,0.001,3894.8,3894.7,3.55366776]
[1761941810744,0.001,3894.8,3894.7,3.05609185]
[1761941811049,0.0521,3894.8,3894.6,0.002]
[1761941811345,0.0521,3894.8,3894.6,2.56963599]
[1761941811544,0.0521,3894.8,3894.6,0.002]
[1761941815373,0.001,3894.8,3894.6,0.002]
[1761941815538,0.001,3894.8,3894.6,2.56964051]
[1761941815868,0.001,3894.8,3894.6,0.002]
[1761941816783,0.001,3894.8,3894.7,0.4885]
[1761941817078,0.001,3894.8,3894.7,0.9604]
[1761941817451,0.001,3894.8,3894.7,0.4885]
[1761941818784,0.128,3894.7,3894.6,0.002]
[1761941819282,0.128,3894.7,3894.6,0.4905]
[1761941819684,0.001,3894.8,3894.6,3.05815778]
[1761941819903,0.001,3894.8,3894.7,0.4885]
[1761941820211,0.001,3894.8,3894.6,0.002]
[1761941820398,0.001,3894.8,3894.6,0.02767657]
[1761941821402,0.001,3894.8,3894.6,0.002]
[1761941821403,0.0555,3894.7,3894.6,0.002]
[1761941821768,0.0555,3894.7,3894.2,2.55007851]
[1761941821969,0.0049,3894.6,3894.1,0.002]
[1761941822166,0.469,3894.2,3894.1,0.002]
[1761941822398,0.7726771,3894.2,3894.1,0.002]
[1761941822595,0.001,3894.8,3894.1,0.9624]
[1761941822922,0.0524,3894.2,3894.1,0.002]
[1761941823074,2.56767652,3894.6,3894.1,0.002]
[1761941823272,0.01796259,3894.5,3894.1,0.002]
[1761941823713,0.469,3894.2,3894.1,0.002]
[1761941825619,0.86412639,3894.2,3894.1,0.002]
[1761941825982,0.88208898,3894.2,3894.1,0.002]
[1761941826399,3.4500105,3894.2,3894.1,0.002]
[1761941826711,3.13638411,3894.2,3894.1,0.002]
[1761941833639,4.94156811,3894.2,3894.1,0.002]
[1761941833923,5.49539639,3894.2,3894.1,0.002]
[1761941834121,4.92360552,3894.2,3894.1,0.002]
[1761941834302,6.21632231,3894.2,3894.1,0.002]
[1761941834503,6.19835972,3894.2,3894.1,0.002]
[1761941836327,6.11685972,3894.2,3894.1,0.002]
[1761941836988,5.71135572,3894.2,3894.1,0.002]
[1761941837188,4.31167572,3894.2,3894.1,0.002]
[1761941837399,3.03692152,3894.2,3894.1,0.002]
[1761941837903,0.469,3894.2,3894.1,0.002]
[1761941838495,0.001,3894.8,3894.1,1.1832]
[1761941838802,0.10292102,3894.7,3894.2,0.4907]
[1761941838995,2.56769798,3894.6,3894.2,0.4907]
[1761941839189,2.56769798,3894.6,3894.2,0.9891]
[1761941839830,2.56769798,3894.6,3894.2,0.4907]
[1761941840005,3.02359798,3894.6,3894.1,0.002]
[1761941840191,0.128,3894.2,3894.1,0.002]
[1761941840727,0.128,3894.2,3894.1,0.4927]
[1761941841136,0.128,3894.2,3894.1,0.9911]
[1761941841294,0.128,3894.2,3894.1,1.1832]
[1761941842596,0.128,3894.2,3894.1,3.77686733]
[1761941843826,0.128,3894.2,3894.1,1.20887987]
[1761941844231,0.128,3894.2,3894.1,3.77686733]
[1761941845010,0.128,3894.2,3894.1,1.20887987]
[1761941845307,0.128,3894.2,3894.1,0.6848]
[1761941845541,0.128,3894.2,3894.1,0.4927]
[1761941845841,0.129,3894.2,3894.1,0.4927]
[1761941847264,0.129,3894.2,3894.1,1.1646]
[1761941847629,0.129,3894.2,3894.1,0.4927]
[1761941847969,3.24222152,3894.2,3894.1,0.002]
[1761941848276,1.25710235,3894.2,3894.1,0.002]
[1761941848430,2.77752152,3894.2,3894.1,0.002]
[1761941849068,2.79548411,3894.2,3894.1,0.002]
[1761941849769,3.26018411,3894.2,3894.1,0.002]
[1761941851583,2.77752152,3894.2,3894.1,0.002]
[1761941851788,3.32234694,3894.2,3894.1,0.002]
[1761941852007,3.34030953,3894.2,3894.1,0.002]
[1761941852498,0.75442542,3894.2,3894.1,0.002]
[1761941852660,0.67382542,3894.2,3894.1,0.4643]
[1761941853059,3.24174694,3894.2,3894.1,0.002]
[1761941854082,3.25970953,3894.2,3894.1,0.002]
[1761941854295,3.24174694,3894.2,3894.1,0.002]
[1761941854817,3.32234694,3894.2,3894.1,0.002]
[1761941855196,0.67382542,3894.2,3894.1,0.002]
[1761941855395,2.69692152,3894.2,3894.1,0.002]
[1761941856785,2.79548411,3894.2,3894.1,0.002]
[1761941857089,2.77752152,3894.2,3894.1,0.002]
[1761941858506,2.79548411,3894.2,3894.1,0.002]
[1761941858723,2.77752152,3894.2,3894.1,0.002]
[1761941858918,3.3223464,3894.2,3894.1,0.002]
[1761941861224,0.001,3894.2,3894.1,0.6502]
[1761941861525,0.001,3894.2,3894.1,0.002]
[1761941862021,0.0816,3894.2,3894.1,0.002]
[1761941862226,0.5463,3894.2,3894.1,0.002]
[1761941862427,0.0816,3894.2,3894.1,0.002]
[1761941862625,3.70217158,3894.2,3894.1,0.002]
[1761941862923,3.13218411,3894.2,3894.1,0.002]
[1761941865212,2.66748411,3894.2,3894.1,0.002]
[1761941865735,2.64952152,3894.2,3894.1,0.002]
[1761941866123,0.001,3894.2,3894.1,0.4643]
[1761941866418,2.56892152,3894.2,3894.1,0.9451]
[1761941866786,2.56892152,3894.2,3894.1,0.4643]
[1761941867524,2.56892152,3894.2,3894.1,0.002]
[1761941867715,3.15848577,3894.2,3894.1,0.002]
[1761941868029,3.63808577,3894.2,3894.1,0.002]
[1761941868392,3.15848577,3894.2,3894.1,0.002]
[1761941868733,4.1931382,3894.2,3894.1,0.002]
[1761941868945,4.29607088,3894.2,3894.1,0.002]
[1761941870645,3.81647088,3894.2,3894.1,0.002]
[1761941870832,2.6718542,3894.2,3894.1,0.4827]
[1761941871207,2.7374542,3894.2,3894.1,0.002]
[1761941871946,3.2170542,3894.2,3894.1,0.002]
[1761941873239,2.7374542,3894.2,3894.1,0.002]
[1761941873544,3.25213529,3894.2,3894.1,0.002]
[1761941873747,3.31773529,3894.2,3894.1,0.002]
[1761941874334,0.68421377,3894.2,3894.1,0.002]